fUST/lending_fUST_20240825
["ID","MTS","AMOUNT","RATE_DAILY","PERIOD"]
[335885673,1724569851268,-266.605872,0.00013698,2]
[335885674,1724569851278,-500.0,0.00013698,2]
[335885675,1724569851287,-652.81,0.00013698,2]
[335885676,1724569851298,-500.0,0.00013698,2]
[335885677,1724569851309,-500.0,0.00013698,2]
[335885678,1724569851319,-266.605872,0.00013698,2]
[335885679,1724569851331,-266.605872,0.00013698,2]
[335885680,1724569851340,-266.605874,0.00013698,2]
[335885681,1724569851352,-500.0,0.00013698,2]
[335885682,1724569851362,-812.91,0.00013698,2]
[335885683,1724569851371,-500.0,0.00013698,2]
[335885684,1724569851381,-500.0,0.00013698,2]
[335885685,1724569851390,-507.43,0.00013698,2]
[335885686,1724569851400,-367.38125409,0.00013698,2]
[335885687,1724569851410,-500.0,0.00013698,2]
[335885688,1724569851419,-500.0,0.00013698,2]
[335885689,1724569851429,-729.48,0.00013698,2]
[335885690,1724569851438,-500.0,0.00013698,2]
[335885691,1724569851448,-1140.62,0.00013698,2]
[335885692,1724569851458,-500.0,0.00013698,2]
[335885693,1724569851467,-502.28878103,0.00013698,2]
[335885694,1724569851476,-500.0,0.00013698,2]
[335885695,1724569851485,-500.25989979,0.00013698,2]
[335885696,1724569851495,-500.0,0.00013698,2]
[335885697,1724569851504,-154.39335029,0.00013698,2]
[335885698,1724569851514,-1114.06,0.00013698,2]
[335885699,1724569851524,-45822.62,0.00013698,2]
[335885700,1724569851536,-6208.08,0.00013698,2]
[335885701,1724569851548,-500.77461417,0.00013698,2]
[335885702,1724569851559,-500.0,0.00013698,2]
[335885703,1724569851569,-500.0,0.00013698,2]
[335885704,1724569851578,-500.0,0.00013698,2]
[335885705,1724569851588,-500.0,0.00013698,2]
[335885706,1724569851597,-1078.94,0.00013698,2]
[335885707,1724569851607,-1102.16,0.00013698,2]
[335885708,1724569851616,-500.0,0.00013698,2]
[335885709,1724569851626,-500.0,0.00013698,2]
[335885710,1724569851635,-500.0,0.00013698,2]
[335885711,1724569851646,-500.0,0.00013698,2]
[335885712,1724569851655,-500.0,0.00013698,2]
[335885713,1724569851665,-500.0,0.00013698,2]
[335885714,1724569851674,-500.0,0.00013698,2]
[335885715,1724569851684,-1008.07,0.00013698,2]
[335885716,1724569851694,-501.13790444,0.00013698,2]
[335885717,1724569851703,-614.52,0.00013698,2]
[335885718,1724569851715,-987.38,0.00013698,2]
[335885719,1724569851727,-878.48,0.00013698,2]
[335885720,1724569851739,-500.0,0.00013698,2]
[335885721,1724569851750,-500.0,0.00013698,2]
[335885722,1724569851761,-692.53,0.00013698,2]
[335885723,1724569851771,-780.8,0.00013698,2]
[335885724,1724569851781,-500.0,0.00013698,2]
[335885725,1724569851790,-500.0,0.00013698,2]
[335885726,1724569851799,-604.03,0.00013698,2]
[335885727,1724569851808,-604.93,0.00013698,2]
[335885728,1724569851818,-500.0,0.00013698,2]
[335885729,1724569851827,-503.00657275,0.00013698,2]
[335885730,1724569851837,-5690.46,0.00013698,2]
[335885731,1724569851850,-500.0,0.00013698,2]
[335885732,1724569851860,-12542.21,0.00013698,2]
[335885733,1724569851870,-500.0,0.00013698,2]
[335885734,1724569851880,-960.44,0.00013698,2]
[335885735,1724569851890,-1365.51,0.00013698,2]
[335885736,1724569851910,-500.0,0.00013698,2]
[335885737,1724569851920,-693.78,0.00013698,2]
[335885738,1724569851930,-500.0,0.00013698,2]
[335885739,1724569851939,-500.0,0.00013698,2]
[335885740,1724569851949,-843.19,0.00013698,2]
[335885741,1724569851959,-500.0,0.00013698,2]
[335885742,1724569851970,-649.64,0.00013698,2]
[335885743,1724569851980,-500.0,0.00013698,2]
[335885744,1724569851991,-500.0,0.00013698,2]
[335885745,1724569852002,-865.5,0.00013698,2]
[335885746,1724569852011,-500.83639828,0.00013698,2]
[335885747,1724569852020,-782.46,0.00013698,2]
[335885748,1724569852028,-2717.76,0.00013698,2]
[335885749,1724569852037,-500.0,0.00013698,2]
[335885750,1724569852047,-500.69510474,0.00013698,2]
[335885751,1724569852056,-945.64,0.00013698,2]
[335885752,1724569852066,-516.12,0.00013698,2]
[335885753,1724569852077,-500.0,0.00013698,2]
[335885754,1724569852087,-500.0,0.00013698,2]
[335885755,1724569852277,-500.0,0.00013698,2]
[335885756,1724569852288,-500.0,0.00013698,2]
[335885757,1724569852299,-500.0,0.00013698,2]
[335885758,1724569852308,-500.0,0.00013698,2]
[335885759,1724569852318,-500.0,0.00013698,2]
[335885760,1724569852327,-500.0,0.00013698,2]
[335885761,1724569852336,-500.0,0.00013698,2]
[335885762,1724569852346,-500.0,0.00013698,2]
[335885763,1724569852355,-500.0,0.00013698,2]
[335885764,1724569852364,-500.0,0.00013698,2]
[335885765,1724569852374,-500.0,0.00013698,2]
[335885766,1724569852383,-883.13,0.00013698,2]
[335885767,1724569852396,-500.0,0.00013698,2]
[335885768,1724569852406,-500.0,0.00013698,2]
[335885769,1724569852415,-500.0,0.00013698,2]
[335885770,1724569852424,-500.0,0.00013698,2]
[335885771,1724569852433,-500.0,0.00013698,2]
[335885772,1724569852442,-364.42293956,0.00013698,2]
[335885773,1724569852451,-2028.05,0.00013698,2]
[335885774,1724569852460,-492.37852092,0.00013698,2]
[335885775,1724569852470,-500.0,0.00013698,2]
[335885776,1724569852479,-500.0,0.00013698,2]
[335885777,1724569852490,-6979.81,0.00013698,2]
[335885778,1724569852499,-500.0,0.00013698,2]
[335885779,1724569852509,-616.57,0.00013698,2]
[335885780,1724569852518,-500.0,0.00013698,2]
[335885781,1724569852528,-500.0,0.00013698,2]
[335885782,1724569852537,-870.42,0.00013698,2]
[335885783,1724569852546,-500.0,0.00013698,2]
[335885784,1724569852556,-500.0,0.00013698,2]
[335885785,1724569852565,-502.96383061,0.00013698,2]
[335885786,1724569852575,-500.0,0.00013698,2]
[335885787,1724569852585,-501.02005856,0.00013698,2]
[335885788,1724569852594,-500.0,0.00013698,2]
[335885789,1724569852605,-500.0,0.00013698,2]
[335885790,1724569852615,-500.0,0.00013698,2]
[335885791,1724569852624,-500.0,0.00013698,2]
[335885792,1724569852634,-855.57,0.00013698,2]
[335885793,1724569852644,-1738.44,0.00013698,2]
[335885794,1724569852653,-693.87,0.00013698,2]
[335885795,1724569852663,-500.0,0.00013698,2]
[335885796,1724569852673,-678.49,0.00013698,2]
[335885797,1724569852683,-500.0,0.00013698,2]
[335885798,1724569852692,-500.0,0.00013698,2]
[335885799,1724569852702,-500.0,0.00013698,2]
[335885800,1724569852712,-500.0,0.00013698,2]
[335885801,1724569852722,-500.0,0.00013698,2]
[335885802,1724569852732,-500.0,0.00013698,2]
[335885803,1724569852741,-440.20197952,0.00013698,2]
[335885804,1724569852752,-500.0,0.00013698,2]
[335885805,1724569852762,-500.0,0.00013698,2]
[335885806,1724569852772,-900.49,0.00013698,2]
[335885807,1724569852781,-1110.07,0.00013698,2]
[335885808,1724569852791,-500.0,0.00013698,2]
[335885809,1724569852801,-522.87443924,0.00013698,2]
[335885810,1724569852810,-500.0,0.00013698,2]
[335885811,1724569852820,-269.43612048,0.00013698,2]
[335885812,1724569852829,-529.08,0.00013698,2]
[335885813,1724569852839,-500.0,0.00013698,2]
[335885814,1724569852850,-519.45,0.00013698,2]
[335885815,1724569852864,-500.0,0.00013698,2]
[335885816,1724569852874,-966.19,0.00013698,2]
[335885817,1724569852885,-500.0,0.00013698,2]
[335885818,1724569852898,-568.34,0.00013698,2]
[335885819,1724569852908,-706.41,0.00013698,2]
[335885820,1724569852918,-6333.18,0.00013698,2]
[335885821,1724569852929,-500.0,0.00013698,2]
[335885822,1724569852939,-500.0,0.00013698,2]
[335885823,1724569852949,-1061.01,0.00013698,2]
[335885824,1724569852960,-511.36,0.00013698,2]
[335885825,1724569852969,-542.76,0.00013698,2]
[335885826,1724569852979,-500.0,0.00013698,2]
[335885827,1724569852988,-901.23,0.00013698,2]
[335885828,1724569852998,-500.0,0.00013698,2]
[335885829,1724569853007,-881.72,0.00013698,2]
[335885830,1724569853017,-500.0,0.00013698,2]
[335885831,1724569853026,-746.98,0.00013698,2]
[335885832,1724569853036,-780.69,0.00013698,2]
[335885833,1724569853046,-511.62,0.00013698,2]
[335885834,1724569853056,-500.0,0.00013698,2]
[335885835,1724569853066,-500.0,0.00013698,2]
[335885836,1724569853075,-500.0,0.00013698,2]
[335885837,1724569853086,-500.0,0.00013698,2]
[335885838,1724569853097,-500.0,0.00013698,2]
[335885839,1724569853109,-500.0,0.00013698,2]
[335885840,1724569853120,-500.0,0.00013698,2]
[335885841,1724569853130,-1034.07,0.00013698,2]
[335885842,1724569853140,-500.0,0.00013698,2]
[335885843,1724569853154,-652.23,0.00013698,2]
[335885844,1724569853164,-500.0,0.00013698,2]
[335885845,1724569853173,-500.0,0.00013698,2]
[335885846,1724569853183,-500.0,0.00013698,2]
[335885847,1724569853192,-937.25,0.00013698,2]
[335885848,1724569853202,-925.14,0.00013698,2]
[335885849,1724569853211,-500.0,0.00013698,2]
[335885850,1724569853221,-747.63,0.00013698,2]
[335885851,1724569853231,-493.4252913,0.00013698,2]
[335885852,1724569853241,-9367.64,0.00013698,2]
[335885853,1724569853250,-500.0,0.00013698,2]
[335885854,1724569853260,-580.81,0.00013698,2]
[335885855,1724569853270,-500.0,0.00013698,2]
[335885856,1724569853281,-518.38,0.00013698,2]
[335885857,1724569853291,-704.08,0.00013698,2]
[335885858,1724569853300,-2120.2,0.00013698,2]
[335885859,1724569853309,-2120.2,0.00013698,2]
[335885860,1724569853319,-704.08,0.00013698,2]
[335885861,1724569853328,-2120.2,0.00013698,2]
[335885862,1724569853338,-500.13667339,0.00013698,2]
[335885863,1724569854196,-203.94332661,0.00013698,2]
[335885864,1724569854206,-85.89667339,0.00013698,2]
[335885880,1724570153994,163.26,0.00010959,2]
[335885882,1724570177709,49658.3390141,0.00026,120]
[335885885,1724570342261,5000.12,0.00012,10]
[335885891,1724570619818,8026.09913603,0.00025,60]
[335885926,1724571032510,-991.86933725,0.00012689,2]
[335885927,1724571032522,-254.43533,0.00012877,2]
[335885928,1724571032532,-547.59991159,0.00012985,2]
[335885929,1724571032541,-154.76012181,0.00013025,4]
[335885930,1724571032551,-398.78850912,0.00013238,2]
[335885931,1724571032562,-66.21149088,0.00013238,2]
[335885932,1724571032572,-153.0,0.000133,2]
[335885933,1724571032582,-153.0,0.000133,2]
[335885934,1724571032591,-153.0,0.000134,2]
[335885935,1724571032600,-3618.27867628,0.00013459,2]
[335885936,1724571032627,-2102.73718974,0.00013459,2]
[335885937,1724571032636,-209.78094003,0.00013496,2]
[335885938,1724571032648,-300.0,0.00013499,2]
[335885939,1724571032657,-153.0,0.000135,2]
[335885940,1724571032666,-153.0,0.000135,2]
[335885941,1724571032675,-2746.43860176,0.000135,2]
[335885942,1724571032687,-258.18004786,0.000135,2]
[335885954,1724571038273,-4580.68317738,0.000135,2]
[335885955,1724571038286,-2414.698173,0.000135,2]
[335885956,1724571038295,-372.15849874,0.00013541,2]
[335885997,1724571040279,-912.14036787,0.00013541,2]
[335886001,1724571040515,-4334.36575158,0.00013541,2]
[335886060,1724571043299,-10457.92455284,0.00013541,2]
[335886340,1724571046178,-274.0,0.00013541,2]
[335886925,1724571115383,-300.0,0.0001354,2]
[335886926,1724571115409,-99700.0,0.00013541,2]
[335886941,1724571595595,-241.713563,0.00012877,2]
[335886942,1724571595948,-241.713563,0.00013453,2]
[335886943,1724571595965,-411.572874,0.00013453,2]
[335886944,1724571672427,-5721.01586602,0.00013488,2]
[335886945,1724571672462,-202.72090072,0.00013496,2]
[335886946,1724571672494,-300.0,0.0001354,2]
[335886949,1724571757383,-5449.8055658,0.00013453,2]
[335886979,1724572232258,-229.627884,0.00012877,2]
[335886981,1724572232268,-415.24587429,0.00012989,2]
[335886983,1724572232277,-300.0,0.00012998,2]
[335886985,1724572232287,-4466.46243647,0.00012999,2]
[335886986,1724572232299,-8070.53756353,0.00012999,2]
[335886988,1724572232309,-5721.01586602,0.00013152,2]
[335886990,1724572232319,-5988.29060869,0.000134,2]
[335886993,1724572232332,-12203.88815059,0.000134,2]
[335886995,1724572232346,-271807.82124072,0.000134,2]
[335886997,1724572232357,-898.34782203,0.00013497,2]
[335886999,1724572232367,-47769.888453,0.00013541,2]
[335887001,1724572232381,-3570.12439564,0.00013541,2]
[335887546,1724572238334,-7.24283512,0.00013541,2]
[335887548,1724572238344,-150.0,0.00013553,2]
[335887551,1724572238358,-522.0,0.00013553,2]
[335887553,1724572238368,-1416.0,0.00013553,2]
[335887555,1724572238379,-2141.25599871,0.0001357,2]
[335888099,1724572243691,-393.67297514,0.0001357,2]
[335891427,1724572278194,780.2,0.00010959,2]
[335891763,1724573432402,-218.146489,0.00012877,2]
[335891764,1724573432411,-167.3293178,0.00012985,2]
[335891765,1724573432421,-1000.0,0.00013,13]
[335891766,1724573432430,-1752.1361932,0.000132,2]
[335891783,1724573438597,-3968.87967282,0.000132,2]
[335891785,1724573438607,-465.0,0.00013205,2]
[335891787,1724573438617,-153.0,0.000135,2]
[335891789,1724573438627,-153.0,0.000135,2]
[335891791,1724573438637,-300.0,0.00013555,2]
[335891793,1724573438647,-150.0,0.00013556,2]
[335891795,1724573438657,-150.0,0.00013556,2]
[335891798,1724573438667,-522.0,0.00013556,2]
[335891800,1724573438677,-1416.0,0.00013556,2]
[335891802,1724573438687,-946.2579239,0.0001357,2]
[335891804,1724573438696,-16870.4383928,0.00013578,2]
[335891872,1724573440553,-4770.01570441,0.00013578,2]
[335892474,1724573446403,-1327.76017751,0.00013578,2]
[335892481,1724573446458,-373.6,0.00013578,2]
[335897113,1724573783114,292.81858268,0.00012111,2]
[335897114,1724573791058,4741.54259268,0.00012111,2]
[335897115,1724573887618,198.96990819,0.00012111,2]
[335897116,1724573907133,360.45237588,0.00012111,2]
[335897118,1724573910500,4722.61599945,0.00012111,2]
[335897119,1724573931272,218.89010163,0.00012111,2]
[335897122,1724574039500,4723.60783065,0.00012111,2]
[335897123,1724574072373,218.51615349,0.00012111,2]
[335897126,1724574110940,24890.0,0.00012004,2]
[335897128,1724574149507,3870.53472724,0.00012004,2]
[335897131,1724574373878,245.41374063,0.00012004,2]
[335897132,1724574382556,187.02119615,0.00012004,2]
[335897134,1724574405305,991.25718944,0.00012004,2]
[335897138,1724574478755,223.38818843,0.00012004,2]
[335897142,1724574516396,219.21728904,0.00012004,2]
[335897221,1724574638767,-166.666669,0.00012251,2]
[335897222,1724574638777,-2658.72839029,0.00012551,2]
[335897223,1724574638787,-233.62152,0.00012877,2]
[335897224,1724574638796,-521.61080417,0.00012971,2]
[335897225,1724574638806,-154.76012181,0.00012985,2]
[335897226,1724574638816,-501.49829532,0.00012989,2]
[335897227,1724574638829,-650.27636205,0.00012991,2]
[335897228,1724574638841,-309.18063735,0.00012991,2]
[335897229,1724574638854,-154.76012181,0.00012991,2]
[335897230,1724574638864,-300.0,0.00013154,2]
[335897231,1724574638874,-5721.01586602,0.00013155,2]
[335897232,1724574638884,-207.7300879,0.000132,2]
[335897233,1724574638893,-207.7300879,0.000132,2]
[335897234,1724574638902,-153.0,0.000132,2]
[335897235,1724574638912,-154.90128207,0.00013333,2]
[335897236,1724574638921,-1308.06166657,0.00013358,2]
[335897237,1724574638931,-125293.826864,0.00013368,2]
[335897238,1724574638940,-125293.826864,0.00013368,2]
[335897239,1724574638950,-88888.0,0.00013378,2]
[335897240,1724574638959,-415.4601758,0.000134,2]
[335897241,1724574638969,-306.9646538,0.000134,2]
[335897242,1724574638979,-153.0,0.000134,2]
[335897243,1724574638988,-153.0,0.000134,2]
[335897244,1724574638998,-150.112233,0.000134,2]
[335897245,1724574639007,-155.245939,0.000134,2]
[335897246,1724574639017,-125293.826864,0.00013456,2]
[335897247,1724574639026,-998.50224663,0.00013466,2]
[335897248,1724574639035,-153.0833631,0.0001347,2]
[335897249,1724574639045,-500.0,0.00013473,2]
[335897250,1724574639054,-337.61086055,0.00013473,2]
[335897251,1724574639064,-159.07426474,0.00013473,2]
[335897252,1724574639076,-1004.64731291,0.00013476,2]
[335897253,1724574639092,-397.09537794,0.00013477,2]
[335897254,1724574639101,-209.78094003,0.00013497,2]
[335897255,1724574639111,-153.0,0.000135,2]
[335897256,1724574639121,-409.2733729,0.000135,2]
[335897257,1724574639131,-153.0,0.000135,2]
[335897258,1724574639141,-306.0,0.000135,2]
[335897259,1724574639150,-150.112233,0.000135,2]
[335897260,1724574639163,-150.112233,0.000135,2]
[335897261,1724574639173,-150.112233,0.000135,2]
[335897262,1724574639182,-150.112233,0.000135,2]
[335897263,1724574639192,-150.112233,0.000135,2]
[335897264,1724574639202,-150.112233,0.000135,2]
[335897265,1724574639215,-150.112233,0.000135,2]
[335897266,1724574639225,-187231.38667671,0.00013541,2]
[335897267,1724574639235,-1416.0,0.00013547,2]
[335897268,1724574639244,-150.0,0.00013547,2]
[335897269,1724574639254,-125293.826864,0.0001356,2]
[335897270,1724574639263,-60560.8629296,0.0001357,2]
[335897271,1724574639273,-500.0,0.00013573,2]
[335897272,1724574639283,-150.01,0.00013577,2]
[335897273,1724574639292,-1733.01815322,0.00013577,2]
[335897274,1724574639302,-3000.0,0.0001358,2]
[335897275,1724574639312,-33439.72459186,0.00013598,2]
[335897276,1724574639323,-155.21790973,0.00013599,2]
[335897277,1724574639334,-2500.0,0.000136,2]
[335897278,1724574639344,-300.307684,0.000136,4]
[335897279,1724574639353,-150.112233,0.000136,2]
[335897280,1724574639363,-153.0,0.000136,2]
[335897281,1724574639373,-306.920445,0.000136,2]
[335897282,1724574639383,-153.0,0.000136,2]
[335897283,1724574639393,-153.4430491,0.000136,2]
[335897284,1724574639402,-150.112233,0.000136,2]
[335897285,1724574639412,-150.112233,0.000136,2]
[335897286,1724574639422,-150.112233,0.000136,2]
[335897287,1724574639432,-150.112233,0.000136,2]
[335897288,1724574639441,-150.112233,0.000136,2]
[335897289,1724574639451,-150.112233,0.000136,2]
[335897290,1724574639460,-150.112233,0.000136,2]
[335897291,1724574639470,-160.0287697,0.00013673,2]
[335897292,1724574639480,-500.0,0.00013673,2]
[335897293,1724574639491,-500.0,0.00013673,2]
[335897294,1724574639500,-500.0,0.00013673,2]
[335897295,1724574639511,-500.0,0.00013673,2]
[335897296,1724574639521,-200.33391422,0.00013673,2]
[335897297,1724574639531,-500.0,0.00013673,2]
[335897298,1724574639540,-504.81258819,0.00013673,2]
[335897299,1724574639550,-155.0,0.0001368,2]
[335897300,1724574639560,-102393.76405479,0.00013698,9]
[335897301,1724574639569,-161.98469807,0.00013698,2]
[335897302,1724574639586,-500.70574366,0.00013698,2]
[335897303,1724574639595,-500.0,0.00013698,2]
[335897304,1724574639605,-500.0,0.00013698,2]
[335897305,1724574639615,-504.91247799,0.00013698,2]
[335897306,1724574639625,-501.59387068,0.00013698,2]
[335897307,1724574639635,-500.59802711,0.00013698,2]
[335897308,1724574639646,-506.22976031,0.00013698,2]
[335897309,1724574639655,-500.0,0.00013698,2]
[335897310,1724574639665,-500.0,0.00013698,2]
[335897311,1724574639675,-250.50221101,0.00013698,2]
[335897312,1724574639686,-500.0,0.00013698,2]
[335897313,1724574639696,-500.0,0.00013698,2]
[335897314,1724574639706,-500.0,0.00013698,2]
[335897315,1724574639715,-501.19128398,0.00013698,2]
[335897316,1724574639725,-500.0,0.00013698,2]
[335897317,1724574639735,-500.0,0.00013698,2]
[335897318,1724574639745,-647.48,0.00013698,2]
[335897319,1724574639754,-500.0,0.00013698,2]
[335897320,1724574639766,-500.0,0.00013698,2]
[335897321,1724574639775,-500.0,0.00013698,2]
[335897322,1724574639786,-783.06,0.00013698,2]
[335897323,1724574639796,-501.55759189,0.00013698,2]
[335897324,1724574639805,-500.0,0.00013698,2]
[335897325,1724574639815,-500.0,0.00013698,2]
[335897326,1724574639827,-500.0,0.00013698,2]
[335897327,1724574639837,-500.0,0.00013698,2]
[335897328,1724574639846,-500.0,0.00013698,2]
[335897329,1724574639857,-500.0,0.00013698,2]
[335897330,1724574639867,-150.0,0.00013698,2]
[335897331,1724574639876,-500.0,0.00013698,2]
[335897332,1724574639886,-500.0,0.00013698,2]
[335897333,1724574639896,-539.7,0.00013698,2]
[335897334,1724574639906,-500.0,0.00013698,2]
[335897335,1724574639916,-655.72,0.00013698,2]
[335897336,1724574639926,-500.0,0.00013698,2]
[335897337,1724574639935,-500.0,0.00013698,2]
[335897338,1724574639945,-500.0,0.00013698,2]
[335897339,1724574639955,-501.49645915,0.00013698,2]
[335897340,1724574639966,-515.4588915,0.00013698,2]
[335897341,1724574639975,-500.0,0.00013698,2]
[335897342,1724574639986,-692.7,0.00013698,2]
[335897343,1724574639995,-500.0,0.00013698,2]
[335897344,1724574640005,-568.17,0.00013698,2]
[335897345,1724574640015,-500.0,0.00013698,2]
[335897346,1724574640024,-500.0,0.00013698,2]
[335897347,1724574640034,-500.0,0.00013698,2]
[335897348,1724574640044,-500.0,0.00013698,2]
[335897349,1724574640053,-875.37,0.00013698,2]
[335897350,1724574640063,-500.0,0.00013698,2]
[335897351,1724574640072,-500.0,0.00013698,2]
[335897352,1724574640084,-500.0,0.00013698,2]
[335897353,1724574640095,-500.0,0.00013698,2]
[335897354,1724574640105,-505.99165705,0.00013698,2]
[335897355,1724574640114,-500.0,0.00013698,2]
[335897356,1724574640124,-500.0,0.00013698,2]
[335897357,1724574640135,-500.0,0.00013698,2]
[335897358,1724574640144,-159.1826021,0.00013698,2]
[335897359,1724574640154,-500.0,0.00013698,2]
[335897360,1724574640166,-500.0,0.00013698,2]
[335897361,1724574640176,-500.0,0.00013698,2]
[335897362,1724574640186,-559.2,0.00013698,2]
[335897363,1724574640196,-450.79835276,0.00013698,2]
[335897364,1724574640206,-509.05346758,0.00013698,2]
[335897365,1724574640217,-500.0,0.00013698,2]
[335897366,1724574640226,-500.0,0.00013698,2]
[335897367,1724574640236,-1053.67,0.00013698,2]
[335897368,1724574640246,-500.0,0.00013698,2]
[335897369,1724574640256,-153.66021957,0.00013698,2]
[335897370,1724574640266,-500.0,0.00013698,2]
[335897371,1724574640276,-500.0,0.00013698,2]
[335897372,1724574640286,-500.0,0.00013698,2]
[335897373,1724574640296,-500.0,0.00013698,2]
[335897374,1724574640306,-500.0,0.00013698,2]
[335897375,1724574640316,-500.0,0.00013698,2]
[335897376,1724574640326,-321.20435799,0.00013698,2]
[335897377,1724574640336,-500.0,0.00013698,2]
[335897378,1724574640346,-500.0,0.00013698,2]
[335897379,1724574640356,-500.0,0.00013698,2]
[335897380,1724574640366,-500.0,0.00013698,2]
[335897381,1724574640376,-500.0,0.00013698,2]
[335897382,1724574640386,-500.0,0.00013698,2]
[335897383,1724574640395,-500.0,0.00013698,2]
[335897384,1724574640405,-500.0,0.00013698,2]
[335897385,1724574640416,-685.49,0.00013698,2]
[335897386,1724574640426,-649.1,0.00013698,2]
[335897387,1724574640435,-944.78,0.00013698,2]
[335897388,1724574640447,-500.0,0.00013698,2]
[335897389,1724574640457,-683.97,0.00013698,2]
[335897390,1724574640467,-500.0,0.00013698,2]
[335897391,1724574640477,-500.0,0.00013698,2]
[335897392,1724574640487,-500.0,0.00013698,2]
[335897393,1724574640497,-695.48,0.00013698,2]
[335897394,1724574640506,-563.32,0.00013698,2]
[335897395,1724574640516,-500.0,0.00013698,2]
[335897397,1724574640526,-500.0,0.00013698,2]
[335897399,1724574640538,-501.13883498,0.00013698,2]
[335897401,1724574640549,-500.0,0.00013698,2]
[335897403,1724574640559,-506.69225657,0.00013698,2]
[335897406,1724574640569,-635.74,0.00013698,2]
[335897408,1724574640580,-593.36,0.00013698,2]
[335897410,1724574640590,-507.1068432,0.00013698,2]
[335897412,1724574640599,-531.47,0.00013698,2]
[335897414,1724574640609,-500.0,0.00013698,2]
[335897416,1724574640619,-500.0,0.00013698,2]
[335897418,1724574640630,-687.37,0.00013698,2]
[335897420,1724574640642,-500.0,0.00013698,2]
[335897422,1724574640651,-890.96,0.00013698,2]
[335897424,1724574640662,-500.0,0.00013698,2]
[335897426,1724574640672,-500.0,0.00013698,2]
[335897429,1724574640681,-500.0,0.00013698,2]
[335897431,1724574640690,-500.0,0.00013698,2]
[335897432,1724574640699,-716.31,0.00013698,2]
[335897434,1724574640708,-500.0,0.00013698,2]
[335897437,1724574640718,-500.0,0.00013698,2]
[335897439,1724574640727,-620.22,0.00013698,2]
[335897440,1724574640736,-500.0,0.00013698,2]
[335897442,1724574640745,-500.0,0.00013698,2]
[335897444,1724574640755,-500.0,0.00013698,2]
[335897446,1724574640764,-500.0,0.00013698,2]
[335897448,1724574640774,-500.0,0.00013698,2]
[335897450,1724574640783,-500.86828693,0.00013698,2]
[335897451,1724574640792,-500.0,0.00013698,2]
[335897452,1724574640802,-500.0,0.00013698,2]
[335897453,1724574640811,-500.0,0.00013698,2]
[335897454,1724574640821,-511.34,0.00013698,2]
[335897455,1724574640834,-500.0,0.00013698,2]
[335897456,1724574640843,-950.16,0.00013698,2]
[335897457,1724574640852,-432.9630996,0.00013698,2]
[335897458,1724574640862,-500.0,0.00013698,2]
[335897459,1724574640871,-500.0,0.00013698,2]
[335897460,1724574640880,-500.0,0.00013698,2]
[335897461,1724574640891,-500.6952421,0.00013698,2]
[335897462,1724574640900,-500.0,0.00013698,2]
[335897463,1724574640910,-500.0,0.00013698,2]
[335897464,1724574640920,-500.0,0.00013698,2]
[335897465,1724574640929,-500.0,0.00013698,2]
[335897466,1724574640939,-500.0,0.00013698,2]
[335897467,1724574640949,-500.0,0.00013698,2]